fUSD/lending_fUSD_20250101
["ID","MTS","AMOUNT","RATE_DAILY","PERIOD"]
[347386524,1735755024289,-500.0,0.00010958,2]
[347386525,1735755024312,-763.92,0.00010958,2]
[347386526,1735755024336,-3081.56,0.00010958,2]
[347386527,1735755024359,-500.0,0.00010958,2]
[347386528,1735755024382,-500.0,0.00010958,2]
[347386529,1735755024406,-1249.28,0.00010958,2]
[347386530,1735755024431,-1439.09,0.00010958,2]
[347386531,1735755024457,-500.0,0.00010958,2]
[347386532,1735755024480,-500.72218049,0.00010958,2]
[347386533,1735755024504,-500.0,0.00010958,2]
[347386534,1735755024527,-500.0,0.00010958,2]
[347386535,1735755024550,-500.0,0.00010958,2]
[347386536,1735755024576,-943.74,0.00010958,2]
[347386537,1735755024602,-803.24,0.00010958,2]
[347386538,1735755024625,-500.0,0.00010958,2]
[347386539,1735755024652,-3741.77,0.00010958,2]
[347386540,1735755024676,-500.0,0.00010958,2]
[347386541,1735755024699,-500.0,0.00010958,2]
[347386542,1735755024723,-2189.14,0.00010958,2]
[347386543,1735755024746,-1047.63,0.00010958,2]
[347386544,1735755024769,-1199.5,0.00010958,2]
[347386545,1735755024792,-1782.64,0.00010958,2]
[347386546,1735755024816,-2187.23,0.00010958,2]
[347386547,1735755024839,-500.0,0.00010958,2]
[347386548,1735755024862,-500.0,0.00010958,2]
[347386549,1735755024886,-500.0,0.00010958,2]
[347386550,1735755024910,-662.01,0.00010958,2]
[347386551,1735755024935,-877.44,0.00010958,2]
[347386552,1735755024958,-500.42362975,0.00010958,2]
[347386553,1735755024982,-500.0,0.00010958,2]
[347386554,1735755025006,-2062.15,0.00010958,2]
[347386555,1735755025030,-500.0,0.00010958,2]
[347386556,1735755025055,-500.0,0.00010958,2]
[347386557,1735755025080,-500.0,0.00010958,2]
[347386558,1735755025105,-446.87631172,0.00010958,2]
[347386559,1735755025131,-1165.29,0.00010958,2]
[347386560,1735755025154,-585.26,0.00010958,2]
[347386561,1735755025180,-670.97,0.00010958,2]
[347386562,1735755025204,-10949.07,0.00010958,2]
[347386563,1735755025228,-500.0,0.00010958,2]
[347386564,1735755025254,-635.19,0.00010958,2]
[347386565,1735755025278,-667.53,0.00010958,2]
[347386566,1735755025300,-500.16285087,0.00010958,2]
[347386567,1735755025323,-2028.49,0.00010958,2]
[347386568,1735755025345,-500.0,0.00010958,2]
[347386569,1735755025368,-2259.14,0.00010958,2]
[347386570,1735755025392,-6798.48,0.00010958,2]
[347386571,1735755025416,-4693.66,0.00010958,2]
[347386572,1735755025440,-500.0,0.00010958,2]
[347386573,1735755025464,-500.0,0.00010958,2]
[347386574,1735755025487,-1711.06,0.00010958,2]
[347386575,1735755025511,-1065.29,0.00010958,2]
[347386576,1735755025540,-500.0,0.00010958,2]
[347386577,1735755025565,-2223.27,0.00010958,2]
[347386578,1735755025589,-1238.98,0.00010958,2]
[347386579,1735755025614,-16057.91,0.00010958,2]
[347386580,1735755025637,-1329.02,0.00010958,2]
[347386581,1735755025661,-902.63,0.00010958,2]
[347386582,1735755025689,-500.0,0.00010958,2]
[347386583,1735755025713,-500.0,0.00010958,2]
[347386584,1735755025738,-500.0,0.00010958,2]
[347386585,1735755025762,-500.0,0.00010958,2]
[347386586,1735755025786,-5284.91,0.00010958,2]
[347386587,1735755025809,-250.40487931,0.00010958,2]
[347386588,1735755025834,-500.0,0.00010958,2]
[347386589,1735755025857,-500.0,0.00010958,2]
[347386590,1735755025883,-1841.12,0.00010958,2]
[347386591,1735755025908,-1213.97,0.00010958,2]
[347386592,1735755025938,-1983.14,0.00010958,2]
[347386593,1735755025963,-1598.4,0.00010958,2]
[347386594,1735755025988,-720.52,0.00010958,2]
[347386595,1735755026012,-500.0,0.00010958,2]
[347386596,1735755026036,-1511.91,0.00010958,2]
[347386597,1735755026060,-500.0,0.00010958,2]
[347386598,1735755026085,-2151.29,0.00010958,2]
[347386599,1735755026108,-500.0,0.00010958,2]
[347386600,1735755026133,-500.0,0.00010958,2]
[347386601,1735755026157,-540.28,0.00010958,2]
[347386602,1735755026184,-500.0,0.00010958,2]
[347386603,1735755026209,-541.2,0.00010958,2]
[347386604,1735755026233,-500.0,0.00010958,2]
[347386605,1735755026259,-1095.56,0.00010958,2]
[347386606,1735755026285,-500.0,0.00010958,2]
[347386607,1735755026309,-763.34,0.00010958,2]
[347386608,1735755026333,-1607.49,0.00010958,2]
[347386609,1735755026357,-2498.45,0.00010958,2]
[347386610,1735755026380,-500.0,0.00010958,2]
[347386611,1735755026403,-1551.48,0.00010958,2]
[347386612,1735755026430,-500.0,0.00010958,2]
[347386613,1735755026454,-500.0,0.00010958,2]
[347386614,1735755026478,-3523.09,0.00010958,2]
[347386615,1735755026501,-714.77,0.00010958,2]
[347386616,1735755026529,-1435.14,0.00010958,2]
[347386617,1735755026553,-752.16,0.00010958,2]
[347386618,1735755026581,-500.0,0.00010958,2]
[347386619,1735755026605,-500.0,0.00010958,2]
[347386620,1735755026629,-500.0,0.00010958,2]
[347386621,1735755026655,-1069.09,0.00010958,2]
[347386622,1735755026680,-2490.81,0.00010958,2]
[347386623,1735755026704,-2097.87,0.00010958,2]
[347386624,1735755026728,-3309.27,0.00010958,2]
[347386625,1735755026751,-576.08,0.00010958,2]
[347386626,1735755026775,-500.0,0.00010958,2]
[347386627,1735755026799,-1490.15,0.00010958,2]
[347386628,1735755026823,-1754.96,0.00010958,2]
[347386629,1735755026846,-500.0,0.00010958,2]
[347386630,1735755026870,-500.0,0.00010958,2]
[347386631,1735755026897,-500.0,0.00010958,2]
[347386632,1735755026927,-500.0,0.00010958,2]
[347386633,1735755026953,-1449.7,0.00010958,2]
[347386634,1735755026977,-500.0,0.00010958,2]
[347386635,1735755027000,-2363.76,0.00010958,2]
[347386636,1735755027023,-674.83,0.00010958,2]
[347386637,1735755027048,-626.98,0.00010958,2]
[347386638,1735755027072,-1836.08,0.00010958,2]
[347386639,1735755027098,-8057.1,0.00010958,2]
[347386640,1735755027122,-1544.08,0.00010958,2]
[347386641,1735755027146,-500.0,0.00010958,2]
[347386642,1735755027169,-500.14453577,0.00010958,2]
[347386643,1735755027193,-500.0,0.00010958,2]
[347386644,1735755027216,-1516.01,0.00010958,2]
[347386645,1735755027240,-500.0,0.00010958,2]
[347386646,1735755027263,-500.0,0.00010958,2]
[347386647,1735755027286,-1516.41,0.00010958,2]
[347386648,1735755027310,-869.35,0.00010958,2]
[347386649,1735755027332,-500.0,0.00010958,2]
[347386650,1735755027356,-673.0,0.00010958,2]
[347386651,1735755027379,-500.0,0.00010958,2]
[347386652,1735755027403,-1016.72,0.00010958,2]
[347386653,1735755027426,-698.96,0.00010958,2]
[347386654,1735755027449,-500.0,0.00010958,2]
[347386655,1735755027474,-874.43,0.00010958,2]
[347386656,1735755027496,-6088.15,0.00010958,2]
[347386657,1735755027520,-623.59,0.00010958,2]
[347386658,1735755027545,-4180.16,0.00010958,2]
[347386659,1735755027573,-916.09,0.00010958,2]
[347386660,1735755027599,-3915.12,0.00010958,2]
[347386661,1735755027621,-5448.39,0.00010958,2]
[347386662,1735755027646,-500.0,0.00010958,2]
[347386663,1735755027670,-500.0,0.00010958,2]
[347386664,1735755027695,-500.0,0.00010958,2]
[347386665,1735755027718,-500.0,0.00010958,2]
[347386666,1735755027741,-1320.87,0.00010958,2]
[347386667,1735755027764,-700.32,0.00010958,2]
[347386668,1735755027788,-500.0,0.00010958,2]
[347386669,1735755027811,-1437.85,0.00010958,2]
[347386670,1735755027834,-500.0,0.00010958,2]
[347386671,1735755027856,-500.0,0.00010958,2]
[347386672,1735755027881,-512.87728437,0.00010958,2]
[347386673,1735755027906,-501.04,0.00010958,2]
[347386674,1735755028173,-500.0,0.00010958,2]
[347386675,1735755028198,-2600.22,0.00010958,2]
[347386676,1735755028220,-533.37,0.00010958,2]
[347386677,1735755028242,-500.0,0.00010958,2]
[347386678,1735755028265,-2013.02,0.00010958,2]
[347386679,1735755028287,-500.0,0.00010958,2]
[347386680,1735755028310,-3200.63,0.00010958,2]
[347386681,1735755028332,-500.0,0.00010958,2]
[347386682,1735755028355,-1866.29,0.00010958,2]
[347386683,1735755028377,-1773.56,0.00010958,2]
[347386684,1735755028401,-1258.37,0.00010958,2]
[347386685,1735755028425,-500.0,0.00010958,2]
[347386686,1735755028450,-1070.7,0.00010958,2]
[347386687,1735755028473,-841.35,0.00010958,2]
[347386688,1735755028496,-6505.34,0.00010958,2]
[347386689,1735755028518,-500.0,0.00010958,2]
[347386690,1735755028540,-500.0,0.00010958,2]
[347386691,1735755028565,-500.0,0.00010958,2]
[347386692,1735755028588,-500.0,0.00010958,2]
[347386693,1735755028613,-500.18172553,0.00010958,2]
[347386694,1735755028637,-775.87,0.00010958,2]
[347386695,1735755028661,-500.0,0.00010958,2]
[347386696,1735755028686,-500.0,0.00010958,2]
[347386697,1735755028708,-500.0,0.00010958,2]
[347386698,1735755028733,-2120.4,0.00010958,2]
[347386699,1735755028757,-6928.6,0.00010958,2]
[347386700,1735755028780,-770.96,0.00010958,2]
[347386701,1735755028804,-2384.92,0.00010958,2]
[347386702,1735755028829,-500.0,0.00010958,2]
[347386703,1735755028854,-1661.87,0.00010958,2]
[347386704,1735755028877,-500.0,0.00010958,2]
[347386705,1735755028901,-500.0,0.00010958,2]
[347386706,1735755028926,-2334.1,0.00010958,2]
[347386707,1735755028949,-500.0,0.00010958,2]
[347386708,1735755028973,-609.87,0.00010958,2]
[347386709,1735755028997,-500.0,0.00010958,2]
[347386710,1735755029020,-500.0,0.00010958,2]
[347386711,1735755029044,-1490.48,0.00010958,2]
[347386712,1735755029067,-500.0,0.00010958,2]
[347386713,1735755029091,-936.31,0.00010958,2]
[347386714,1735755029114,-500.0,0.00010958,2]
[347386715,1735755029138,-816.93,0.00010958,2]
[347386716,1735755029162,-4735.82,0.00010958,2]
[347386717,1735755029187,-1399.93,0.00010958,2]
[347386718,1735755029210,-500.0,0.00010958,2]
[347386719,1735755029233,-3981.8,0.00010958,2]
[347386720,1735755029256,-500.0,0.00010958,2]
[347386721,1735755029279,-500.39547438,0.00010958,2]
[347386722,1735755029301,-926.14,0.00010958,2]
[347386723,1735755029324,-500.23604316,0.00010958,2]
[347386724,1735755029347,-500.0,0.00010958,2]
[347386725,1735755029370,-3863.68,0.00010958,2]
[347386726,1735755029393,-1408.92,0.00010958,2]
[347386727,1735755029416,-500.0,0.00010958,2]
[347386728,1735755029442,-500.0,0.00010958,2]
[347386729,1735755029465,-538.6024677,0.00010958,2]
[347386730,1735755029490,-500.0,0.00010958,2]
[347386731,1735755029514,-1101.22,0.00010958,2]
[347386732,1735755029537,-363.76903328,0.00010958,2]
[347386733,1735755029563,-1456.67,0.00010958,2]
[347386734,1735755029587,-2126.58,0.00010958,2]
[347386735,1735755029611,-3111.89,0.00010958,2]
[347386736,1735755029636,-4034.12,0.00010958,2]
[347386737,1735755029660,-500.0,0.00010958,2]
[347386738,1735755029682,-588.03,0.00010958,2]
[347386739,1735755029705,-2344.13,0.00010958,2]
[347386740,1735755029731,-1593.48,0.00010958,2]
[347386741,1735755029754,-500.0,0.00010958,2]
[347386742,1735755029777,-500.0,0.00010958,2]
[347386743,1735755029799,-500.0,0.00010958,2]
[347386744,1735755029823,-500.0,0.00010958,2]
[347386745,1735755029846,-10371.03,0.00010958,2]
[347386746,1735755029870,-500.0,0.00010958,2]
[347386747,1735755029893,-2162.38,0.00010958,2]
[347386748,1735755029918,-3782.27,0.00010958,2]
[347386749,1735755029943,-1926.72,0.00010958,2]
[347386750,1735755029967,-596.52,0.00010958,2]
[347386751,1735755029991,-6456.57,0.00010958,2]
[347386752,1735755030015,-500.0,0.00010958,2]
[347386753,1735755030038,-500.0,0.00010958,2]
[347386754,1735755030061,-2071.29,0.00010958,2]
[347386755,1735755030085,-1799.22,0.00010958,2]
[347386756,1735755030109,-14888.4,0.00010958,2]
[347386757,1735755030134,-654.7,0.00010958,2]
[347386758,1735755030158,-500.0,0.00010958,2]
[347386759,1735755030183,-564.37,0.00010958,2]
[347386760,1735755030208,-669.07,0.00010958,2]
[347386761,1735755030232,-582.5,0.00010958,2]
[347386762,1735755030255,-14821.18,0.00010958,2]
[347386763,1735755030279,-500.0,0.00010958,2]
[347386764,1735755030303,-500.0,0.00010958,2]
[347386765,1735755030327,-500.0,0.00010958,2]
[347386766,1735755030353,-3201.39,0.00010958,2]
[347386767,1735755030377,-500.0,0.00010958,2]
[347386768,1735755030400,-500.0,0.00010958,2]
[347386769,1735755030425,-500.0,0.00010958,2]
[347386770,1735755030449,-2006.98,0.00010958,2]
[347386771,1735755030474,-4796.52,0.00010958,2]
[347386772,1735755030498,-500.0,0.00010958,2]
[347386773,1735755030522,-545.8,0.00010958,2]
[347386774,1735755030547,-2497.27,0.00010958,2]
[347386775,1735755030576,-500.00000001,0.00010958,2]
[347386776,1735755030600,-500.0,0.00010958,2]
[347386777,1735755030624,-620.17,0.00010958,2]
[347386778,1735755030651,-2365.89,0.00010958,2]
[347386779,1735755030674,-1251.65,0.00010958,2]
[347386780,1735755030698,-1853.98,0.00010958,2]
[347386781,1735755030723,-500.0,0.00010958,2]
[347386782,1735755030747,-2277.19,0.00010958,2]
[347386783,1735755030770,-1766.93,0.00010958,2]
[347386784,1735755030793,-500.0,0.00010958,2]
[347386785,1735755030817,-1341.57,0.00010958,2]
[347386786,1735755030841,-1458.74,0.00010958,2]
[347386787,1735755030865,-868.2,0.00010958,2]
[347386788,1735755030888,-11416.94,0.00010958,2]
[347386789,1735755030912,-2477.86,0.00010958,2]
[347386790,1735755030937,-500.0,0.00010958,2]
[347386791,1735755030960,-2163.66,0.00010958,2]
[347386792,1735755030986,-1469.62,0.00010958,2]
[347386793,1735755031010,-1817.4,0.00010958,2]
[347386794,1735755031033,-1661.45,0.00010958,2]
[347386795,1735755031056,-500.0,0.00010958,2]
[347386796,1735755031080,-500.0,0.00010958,2]
[347386797,1735755031103,-13724.69,0.00010958,2]
[347386798,1735755031126,-5720.53,0.00010958,2]
[347386799,1735755031149,-500.0,0.00010958,2]
[347386800,1735755031173,-762.2,0.00010958,2]
[347386801,1735755031196,-743.23,0.00010958,2]
[347386802,1735755031220,-1291.33,0.00010958,2]
[347386803,1735755031243,-500.0,0.00010958,2]
[347386804,1735755031266,-2448.48,0.00010958,2]
[347386805,1735755031288,-500.0,0.00010958,2]
[347386806,1735755031311,-500.0,0.00010958,2]
[347386807,1735755031334,-500.0,0.00010958,2]
[347386808,1735755031358,-500.0,0.00010958,2]
[347386809,1735755031381,-500.0,0.00010958,2]
[347386810,1735755031406,-3031.15,0.00010958,2]
[347386811,1735755031431,-500.0,0.00010958,2]
[347386812,1735755031454,-500.0,0.00010958,2]
[347386813,1735755031478,-500.0,0.00010958,2]
[347386814,1735755031501,-2479.94,0.00010958,2]
[347386815,1735755031530,-500.0,0.00010958,2]
[347386817,1735755031555,-4021.77,0.00010958,2]
[347386818,1735755031581,-4290.82,0.00010958,2]
[347386819,1735755031605,-500.0,0.00010958,2]
[347386820,1735755031628,-814.01,0.00010958,2]
[347386821,1735755031653,-7571.47,0.00010958,2]
[347386822,1735755031676,-613.0,0.00010958,2]
[347386823,1735755031700,-2301.54,0.00010958,2]
[347386824,1735755031724,-500.0,0.00010958,2]
[347386825,1735755031748,-2636.79,0.00010958,2]
[347386826,1735755031772,-1508.15,0.00010958,2]
[347386831,1735755032017,-2076.53,0.00010958,2]
[347386832,1735755032042,-472.70884602,0.00010958,2]
[347386833,1735755032065,-6139.03,0.00010958,2]
[347386837,1735755032089,-500.0,0.00010958,2]
[347386842,1735755032112,-5066.5,0.00010958,2]
[347386846,1735755032135,-500.0,0.00010958,2]
[347386852,1735755032159,-1189.08,0.00010958,2]
[347386858,1735755032183,-210.47041286,0.00010958,2]
[347386863,1735755032207,-500.0,0.00010958,2]
[347386866,1735755032230,-2480.8,0.00010958,2]
[347386870,1735755032257,-500.0,0.00010958,2]
[347386873,1735755032280,-2399.05,0.00010958,2]
[347386877,1735755032303,-1627.47,0.00010958,2]
[347386879,1735755032327,-2515.8,0.00010958,2]
[347386880,1735755032351,-1731.57,0.00010958,2]
[347386881,1735755032373,-500.0,0.00010958,2]
[347386882,1735755032395,-500.0,0.00010958,2]
[347386883,1735755032419,-649.73,0.00010958,2]
[347386884,1735755032444,-1338.36,0.00010958,2]
[347386885,1735755032467,-500.0,0.00010958,2]
[347386886,1735755032490,-1801.24,0.00010958,2]
[347386887,1735755032514,-500.0,0.00010958,2]
[347386888,1735755032537,-2540.26,0.00010958,2]
[347386889,1735755032563,-4362.23,0.00010958,2]
[347386890,1735755032586,-1547.54,0.00010958,2]
[347386891,1735755032609,-1177.45,0.00010958,2]
[347386892,1735755032633,-2837.26,0.00010958,2]
[347386893,1735755032656,-2481.63,0.00010958,2]
[347386894,1735755032680,-500.0,0.00010958,2]
[347386895,1735755032703,-500.0,0.00010958,2]
[347386896,1735755032726,-2020.24,0.00010958,2]
[347386897,1735755032750,-1906.98,0.00010958,2]
[347386898,1735755032773,-500.0,0.00010958,2]
[347386899,1735755032797,-1033.7,0.00010958,2]
[347386900,1735755032822,-5232.81,0.00010958,2]
[347386901,1735755032846,-500.0,0.00010958,2]
[347386902,1735755032869,-500.0,0.00010958,2]
[347386903,1735755032893,-1447.07,0.00010958,2]
[347386904,1735755032917,-500.0,0.00010958,2]
[347386905,1735755032943,-26099.04,0.00010958,2]
[347386906,1735755032967,-1570.72,0.00010958,2]
[347386907,1735755032990,-1165.59,0.00010958,2]
[347386908,1735755033015,-1227.994561,0.00010958,2]
[347386909,1735755033048,-500.0,0.00010958,2]
[347386910,1735755033074,-7500.0,0.00010958,2]
[347386911,1735755033099,-500.0,0.00010958,2]
[347386912,1735755033124,-2416.49,0.00010958,2]
[347386913,1735755033153,-7500.0,0.00010958,2]
[347386914,1735755033177,-2173.73,0.00010958,2]
[347386915,1735755033204,-7500.0,0.00010958,2]
[347386916,1735755033230,-530.9,0.00010958,2]
[347386917,1735755033256,-7500.0,0.00010958,2]
[347386918,1735755033282,-7500.0,0.00010958,2]
[347386919,1735755033306,-633.01,0.00010958,2]
[347386920,1735755033331,-7500.0,0.00010958,2]
[347386921,1735755033356,-1394.86,0.00010958,2]
[347386922,1735755033380,-2008.34,0.00010958,2]
[347386923,1735755033405,-500.0,0.00010958,2]
[347386924,1735755033432,-7371.10394718,0.00010958,2]
[347386925,1735755033458,-500.0,0.00010958,2]
[347386926,1735755033482,-803.86,0.00010958,2]
[347386927,1735755033506,-500.0,0.00010958,2]
[347386928,1735755033530,-500.0,0.00010958,2]
[347386929,1735755033554,-1684.03,0.00010958,2]
[347386930,1735755033581,-1259.63,0.00010958,2]
[347386931,1735755033606,-2432.78,0.00010958,2]
[347386932,1735755033631,-500.0,0.00010958,2]
[347386933,1735755033658,-4932.03,0.00010958,2]
[347386934,1735755033683,-200.0,0.00010959,2]
[347386935,1735755033709,-12703.09,0.00010959,2]
[347386936,1735755033734,-959.01028469,0.00010968,2]
[347386937,1735755033759,-630.44872535,0.00010968,2]
[347386938,1735755033784,-959.01028469,0.0001097,2]
[347386939,1735755033808,-200.09795836,0.0001097,2]
[347386940,1735755033833,-230.71274197,0.0001097,2]
[347386941,1735755033857,-630.44872535,0.00010971,2]
[347386942,1735755033883,-630.44872535,0.00010971,2]
[347386943,1735755033908,-36091.55490285,0.00010972,2]
[347386944,1735755033935,-70972.45703245,0.00010974,2]
[347386945,1735755033963,-70972.45703245,0.00010974,2]
[347386946,1735755033991,-13536.46216427,0.00010975,2]
[347386947,1735755034016,-13536.46216427,0.00010975,2]
[347386948,1735755034041,-200.09795836,0.00010975,2]
[347386949,1735755034065,-36091.55490285,0.00010976,2]
[347386950,1735755034090,-200.0,0.00010976,2]
[347386951,1735755034116,-630.44872535,0.00010979,2]
[347386952,1735755034141,-20085.06628261,0.00010979,2]
[347386953,1735755034167,-630.44872535,0.00010979,2]
[347386954,1735755034194,-230.71274197,0.0001098,2]
[347386955,1735755034219,-88616.59827033,0.0001098,2]
[347386956,1735755034243,-36091.55490285,0.00010981,2]
[347386957,1735755034270,-630.44872535,0.00010982,2]
[347386958,1735755034298,-959.01028469,0.00010982,2]
[347386959,1735755034321,-13536.46216427,0.00010983,2]
[347386960,1735755034348,-70972.45703245,0.00010984,2]
[347386961,1735755034373,-230.71274197,0.00010985,2]
[347386962,1735755034396,-200.09795836,0.00010985,2]
[347386963,1735755034419,-400.0,0.00010986,2]
[347386964,1735755034444,-397.32388395,0.00010987,2]
[347386965,1735755034468,-36091.55490285,0.00010987,2]
[347386966,1735755034491,-20085.06628261,0.00010988,2]
[347386967,1735755034514,-230.71274197,0.00010988,2]
[347386968,1735755034541,-200.09795836,0.00010989,2]
[347386969,1735755034566,-70972.45703245,0.00010989,2]
[347386970,1735755034589,-36091.55490285,0.0001099,2]
[347386971,1735755034619,-200.09795836,0.00010991,2]
[347386972,1735755034647,-20085.06628261,0.00010991,2]
[347386973,1735755034671,-13536.46216427,0.00010991,2]
[347386974,1735755034696,-10384.63823835,0.00010991,2]
[347386975,1735755034720,-959.01028469,0.00010992,2]
[347386976,1735755034743,-959.01028469,0.00010992,2]
[347386977,1735755034766,-10384.63823835,0.00010992,2]
[347386978,1735755034788,-200.09795836,0.00010992,2]
[347386979,1735755034810,-230.71274197,0.00010992,2]
[347386980,1735755034834,-10384.63823835,0.00010993,2]
[347386981,1735755034856,-230.71274197,0.00010993,2]
[347386982,1735755034880,-10384.63823835,0.00010993,2]
[347386983,1735755034902,-20085.06628261,0.00010994,2]
[347386984,1735755034927,-20085.06628261,0.00010994,2]
[347386985,1735755034950,-70972.45703245,0.00010995,2]
[347386986,1735755034974,-959.01028469,0.00010995,2]
[347386987,1735755034998,-70972.45703245,0.00010996,2]
[347386988,1735755035020,-10384.63823835,0.00010996,2]
[347386989,1735755035043,-13536.46216427,0.00010997,2]
[347386990,1735755035068,-20085.06628261,0.00010998,2]
[347386991,1735755035090,-1000.0,0.00010999,2]
[347386992,1735755035113,-36091.55490285,0.00010999,2]
[347386993,1735755035136,-13536.46216427,0.00010999,2]
[347386994,1735755035159,-10384.63823835,0.00011,2]
[347386995,1735755035182,-4608.97480141,0.00011,2]
[347386996,1735755035208,-4153971.9164612,0.00011,2]
[347387087,1735755043150,-276.08704614,0.000101,2]
[347387089,1735755043161,-160.70295386,0.000101,2]
[347387091,1735755043170,-978.7,0.000101,2]
[347387093,1735755043179,-1821.0,0.00010599,2]
[347387095,1735755043189,-9609.0,0.00010762,2]
[347387096,1735755043198,-158.916,0.00010762,2]
[347387097,1735755043208,-3892.0,0.00010762,2]
[347387098,1735755043218,-1172.0,0.00010906,2]
[347387099,1735755043227,-7192.12266021,0.00010958,2]
[347387100,1735755043239,-436.0,0.00010958,2]
[347387101,1735755043251,-1504.39733979,0.00010958,2]
[347387102,1735755043260,-2367.52,0.00010958,2]
[347387103,1735755043269,-500.0,0.00010958,2]
[347387104,1735755043279,-500.0,0.00010958,2]
[347387105,1735755043288,-500.0,0.00010958,2]
[347387106,1735755043298,-500.0,0.00010958,2]
[347387107,1735755043307,-651.69,0.00010958,2]
[347387108,1735755043317,-1233.25,0.00010958,2]
[347387110,1735755043327,-215.64286979,0.00010958,2]
[347387113,1735755043343,-2592.56713021,0.00010958,2]
[347387114,1735755043352,-551.8,0.00010958,2]
[347387117,1735755043361,-500.0,0.00010958,2]
[347387118,1735755043370,-1557.21,0.00010958,2]
[347387120,1735755043379,-705.12,0.00010958,2]
[347387122,1735755043389,-500.0,0.00010958,2]
[347387124,1735755043398,-3817.54535243,0.00011,2]
[347387127,1735755043409,-361.67562588,0.00011,2]
[347387129,1735755043424,-383.46181013,0.00011,2]
[347387132,1735755043445,-9422.2462861,0.00011,2]
[347387134,1735755043456,-5410.14096666,0.00011,2]
[347387137,1735755043478,-5213.83792254,0.00011,2]
[347387139,1735755043487,-54094.43937647,0.00011,2]
[347387142,1735755043498,-941.33630171,0.00011,2]
[347387144,1735755043509,-1324.35182616,0.00011,2]
[347387146,1735755043520,-2542.401,0.00011,2]
[347387149,1735755043544,-537.35772631,0.00011,2]
[347387153,1735755043579,-10980.84507428,0.00011,2]
[347387206,1735755045851,-748.0000006,0.00011,2]
[347387207,1735755045863,-33940.94166415,0.00011,2]
[347387208,1735755045879,-918.92604844,0.00011,2]
[347387209,1735755045891,-881.64674437,0.00011,2]
[347387210,1735755045902,-5017.35,0.00011,2]
[347387211,1735755045918,-1930.39308,0.00011,2]
[347387212,1735755045929,-494.72755185,0.00011,2]
[347387213,1735755045944,-3256.91827047,0.00011,2]
[347387214,1735755045955,-563.37776736,0.00011,2]
[347387215,1735755045967,-430.50305234,0.00011,2]
[347387216,1735755045984,-840.00834718,0.00011,2]
[347387217,1735755045996,-121749.5044434,0.00011,2]
[347387331,1735755047339,-1420.97594,0.00010958,2]
[347387333,1735755047351,-1311.07406,0.00010958,2]
[347387335,1735755047360,-2194.39594,0.00011,2]
[347387337,1735755047371,-1676.52005783,0.00011,2]
[347387339,1735755047383,-1803.82920904,0.00011,2]
[347387341,1735755047394,-259.00479424,0.00011,2]
[347387344,1735755047412,-810.97558558,0.00011,2]
[347387346,1735755047423,-1453.7,0.00011,2]
[347387349,1735755047434,-471.19,0.00011,2]
[347387351,1735755047446,-4092.77978824,0.00011,2]
[347387353,1735755047457,-306.30069675,0.00011,2]
[347387355,1735755047469,-943.30239838,0.00011,2]
[347387358,1735755047484,-669.75841017,0.00011,2]
[347387423,1735755048104,-2500.0,0.00010499,2]
[347387425,1735755048113,-500.0,0.00010958,2]
[347387427,1735755048123,-500.0,0.00010958,2]
[347387429,1735755048132,-605.08746106,0.00010958,2]
[347387431,1735755048142,-729.42151044,0.00011,2]